Cogmind - Beta 13 @@@ ROGUE MODE // 2024.03.11 @ 17:03:24 Player: Yorkinshire Result: Destroyed by D-53 Grenadier with Mini Grenade Launcher Performance ------------- Evolutions (0) 0 Regions Visited (2) 400 Robots Destroyed (15) 75 Value Destroyed (253) 253 Prototype IDs (0) 0 Alien Tech Used (0) 0 Bonus (14) 14 TOTAL SCORE: 742 Bonus ------- Follower Combat Kills 14 Cogmind --------- Core Integrity 0/250 Matter 278/300 Energy 99/100 System Corruption 0% Temperature Cool (0) Movement Core (50) Location -10/Mines Parts ------- > --- POWER (1) -------- (None) > --- PROPULSION (2) --- (None) > --- UTILITY (2) ------ (None) > --- WEAPON (2) ------- (None) > --- INVENTORY (5) ---- Aluminum Leg Sensor Array Signal Interpreter Hardened Light Armor Plating Assault Rifle Peak State ------------ > --- POWER ------------ Light Ion Engine > --- PROPULSION ------- Aluminum Leg Aluminum Leg > --- UTILITY ---------- Small Storage Unit Hardened Light Armor Plating > --- WEAPON ----------- EM Shotgun Assault Rifle > --- INVENTORY -------- Light Ion Engine Improved Ion Engine Improved Ion Engine Hardened Light Armor Plating Hardened Light Armor Plating Hardened Light Armor Plating Assault Rifle Grenade Launcher [Rating: 10] Favorites ----------- Power Light Ion Engine Engine Light Ion Engine Propulsion Aluminum Leg Leg Aluminum Leg Utility Small Storage Unit Storage Small Storage Unit Protection Hardened Light Armor Plating Weapon Assault Rifle Energy Gun EM Shotgun Ballistic Gun Assault Rifle Launcher Grenade Launcher Build | -11 -10 -10 ------- Run | Yrd Mat Min Slots Evolved . | . . . Power . | . . . Propulsion . | . . . Utility . | . . . Weapon . | . . . Parts Attached 18 | 6 9 3 Power 2 | 1 . 1 Engine 2 | 1 . 1 Core . | . . . Reactor . | . . . Propulsion 3 | 2 1 . Treads . | . . . Leg 3 | 2 1 . Wheel . | . . . Hover . | . . . Flight . | . . . Utility 3 | 1 2 . Device . | . . . Storage 1 | 1 . . Processor . | . . . Hackware . | . . . Protection 2 | . 2 . Artifact . | . . . Weapon 10 | 2 6 2 Energy Gun 2 | . 1 1 Energy Cannon . | . . . Ballistic Gun 5 | 2 3 . Ballistic Cannon . | . . . Launcher 3 | . 2 1 Special Weapon . | . . . Impact Weapon . | . . . Slashing Weapon . | . . . Piercing Weapon . | . . . Special Melee Weapon . | . . . Unidentified Prototypes . | . . . Parts Lost 6 | . . 6 Power 1 | . . 1 Propulsion 2 | . . 2 Utility 1 | . . 1 Weapon 2 | . . 2 Highest Loss Streak 6 | . . 6 To Critical Strikes . | . . . Average Slot Usage (%) 96 | . 98 93 Engine 13 | . 14 13 Leg 27 | . 28 25 Storage 13 | . 14 13 Protection 12 | . 12 13 Ballistic Gun 26 | . 26 25 Naked Turns 5 | . . 5 Heaviest Build 18 | 12 18 17 Greatest Support 20 | 20 20 20 Greatest Overweight (x) 1 | 1 . . Average Overweight (x) . | . . . Largest Inventory Capacity 8 | 8 8 8 Average Capacity 7 | 6 8 7 Most Carried 8 | 1 8 8 Average Carried 6 | . 6 7 Final Capacity 8 | 8 8 5 Final Carried 8 | 1 8 5 Class Distribution -------------------- 100% | Mutant Dominant Class ---------------- Mutant | -10/Materials Mutant | -10/Mines Resources | -11 -10 -10 ----------- Run | Yrd Mat Min Matter Collected 476 | 211 237 28 Remotely . | . . . Salvage Created 331 | . 291 40 Parts 37 | . 37 . Haulers Intercepted . | . . . Recyclers Shooed . | . . . Parts Field Recycled . | . . . Retrieved Matter . | . . . Parts Self-Destructed . | . . . Prevented . | . . . Kills | -11 -10 -10 ------- Run | Yrd Mat Min Combat Hostiles Destroyed 18 | . 13 5 Guns 9 | . 8 1 AOE 9 | . 5 4 Classes Destroyed 5 | . 4 1 Worker 1 | . 1 . Watcher 1 | . 1 . Swarmer 9 | . 9 . Grunt 4 | . 4 . Assembled 5 | . . 5 Best Kill Streak 6 | . 6 5 Combat Bots Only 5 | . 4 5 Max Kills in Single Turn 4 | . 3 4 Gunslinging . | . . . Exploded 4 | . 3 4 Melee . | . . . Uniques/NPCs Destroyed . | . . . Combat | -11 -10 -10 -------- Run | Yrd Mat Min Hostile Shots Fired 80 | . 24 56 Missed 18 | . 5 13 Damage Taken 1049 | . 170 879 Core 289 | . 22 267 Absorbed by Shields . | . . . Core Remaining (%) 100 | 100 . . Volleys Fired 26 | . 18 8 Largest 2 | . 2 2 Hottest 65 | . 65 65 Shots Fired 46 | . 32 14 Gun 42 | . 30 12 Cannon . | . . . Launcher 4 | . 2 2 Special . | . . . Kinetic 36 | . 26 10 Thermal . | . . . Explosive 4 | . 2 2 Electromagnetic 6 | . 4 2 Robot Hit Streak 19 | . 19 6 Robot Miss Streak 6 | . 3 6 Penetration Max . | . . . Secondary Targets . | . . . Shots Hit Robots 30 | . 23 7 Core Hits 33 | . 18 15 Critical Kills 1 | . 1 . Critical Parts Destroyed . | . . . Critical Strikes 1 | . 1 . Destroy 1 | . 1 . Melee Attacks . | . . . Impact . | . . . Slashing . | . . . Piercing . | . . . Sneak Attacks . | . . . Combat Hostiles . | . . . Follow-up Attacks . | . . . Damage Inflicted 890 | . 488 402 Guns 338 | . 257 81 Cannons . | . . . Explosions 552 | . 231 321 Melee . | . . . Ramming . | . . . Kinetic 283 | . 232 51 Thermal . | . . . Explosive 552 | . 231 321 Electromagnetic 55 | . 25 30 Impact . | . . . Slashing . | . . . Piercing . | . . . Highest Corruption . | . . . Average Corruption . | . . . Corruption Purged . | . . . Corruption Blocked . | . . . Overload Shots . | . . . Overflow Damage 55 | . 30 25 Projectiles . | . . . Explosions 55 | . 30 25 Melee . | . . . Knockbacks . | . . . Impact . | . . . Kinetic . | . . . Secondary . | . . . Self-Inflicted Damage 38 | . . 38 Shots 1 | . . 1 Rammed . | . . . Targets Rammed . | . . . Kicked . | . . . Crushed . | . . . Highest Temperature 72 | . 72 71 Average Temperature 27 | . 20 43 Received Heat Transfer 148 | . 48 100 Siege Activations . | . . . Robots Corrupted . | . . . Combat Hostiles . | . . . Parts Fried . | . . . Impact Corruptions . | . . . Robots Melted . | . . . Combat Hostiles . | . . . Parts Melted . | . . . Heat Transferred . | . . . Parts Sabotaged . | . . . Parts Stolen . | . . . Parts Stripped . | . . . Power Chain Reactions . | . . . Alert | -11 -10 -10 ------- Run | Yrd Mat Min Peak Influence 355 | . 355 182 Initial 138 | . . 138 Average 138 | . 153 158 Maximum Alert Level 1 | . 1 . Low Security (%) 76 | 100 56 100 Level 1 23 | . 43 . Level 2 . | . . . Level 3 . | . . . Level 4 . | . . . Level 5 . | . . . High Security . | . . . Max Security . | . . . Squads Dispatched 1 | . 1 . Investigation . | . . . Extermination . | . . . Reinforcement 1 | . 1 . Assault . | . . . Garrison . | . . . Intercept . | . . . Searches Triggered . | . . . Construction Impeded . | . . . Haulers Reinforced . | . . . Active Scanning Responses . | . . . Cargo Convoy Interrupts . | . . . Stealth | -11 -10 -10 --------- Run | Yrd Mat Min Distress Signals 1 | . 1 . Communications Jammed . | . . . Distress Signals . | . . . Times Spotted 38 | . 15 23 Peak Tracking Total 17 | . 5 17 Tactical Retreats . | . . . Traps | -11 -10 -10 ------- Run | Yrd Mat Min Traps Triggered . | . . . Indirectly . | . . . Trap Hack Attempts . | . . . Triggered . | . . . Disarmed . | . . . Reprogrammed . | . . . Reused . | . . . Traps Extracted . | . . . Installed . | . . . Triggered . | . . . Machines | -11 -10 -10 ---------- Run | Yrd Mat Min Machines Disabled 1 | . 1 . Max in Single Turn 1 | . 1 . Machines Repaired . | . . . Machines Dismantled . | . . . Machines Sabotaged . | . . . Overloaded Fab Kills . | . . . Hacking | -11 -10 -10 --------- Run | Yrd Mat Min Machines Accessed . | . . . Terminals . | . . . Fabricators . | . . . Repair Stations . | . . . Recycling Units . | . . . Scanalyzers . | . . . Garrison Access . | . . . Total Hacks . | . . . Successful . | . . . Failed . | . . . Catastrophic . | . . . Database Lockouts . | . . . Manual . | . . . Terminals . | . . . Fabricators . | . . . Repair Stations . | . . . Recycling Units . | . . . Scanalyzers . | . . . Garrison Access . | . . . Terminal Hacks . | . . . Fabricator Hacks . | . . . Repair Station Hacks . | . . . Recycling Unit Hacks . | . . . Scanalyzer . | . . . Garrison Access Hacks . | . . . Unauthorized Hacks . | . . . Terminals . | . . . Fabricators . | . . . Repair Stations . | . . . Recycling Units . | . . . Scanalyzers . | . . . Garrison Access . | . . . Data Cores Recovered . | . . . Used . | . . . Hacking Detections . | . . . Full Trace Events . | . . . Feedback Events . | . . . Feedback Blocked . | . . . Robot Schematics Acquired . | . . . Robots Built . | . . . Authchips . | . . . Time . | . . . Total Robot Build Rating . | . . . Part Schematics Acquired . | . . . Parts Built . | . . . Authchips . | . . . Time . | . . . Total Part Build Rating . | . . . Parts Repaired . | . . . Time . | . . . Parts Recycled . | . . . Recycled Matter . | . . . Retrieved Matter . | . . . Retrieved Components . | . . . Parts Scanalyzed . | . . . Part Schematics Acquired . | . . . Parts Damaged . | . . . Bothacking | -11 -10 -10 ------------ Run | Yrd Mat Min Used RIF Installer . | . . . Robots Hacked . | . . . Non-combat . | . . . Combat . | . . . Robot Hacks Applied . | . . . Relay Couplers Released . | . . . Fabnet Peak Effective % . | . . . Robots Rewired . | . . . Allies Hacked . | . . . Hacks Repelled . | . . . Allies | -11 -10 -10 -------- Run | Yrd Mat Min Total Allies 2 | . . 2 Largest Group 2 | . . 2 Highest-Rated Group 45 | . . 45 Highest-Rated Ally 31 | . . 31 Total Orders . | . . . Ally Attacks 10 | . . 10 Total Damage 125 | . . 125 Kills 3 | . . 3 Allies Corrupted . | . . . Allies Melted . | . . . Intel | -11 -10 -10 ------- Run | Yrd Mat Min Robot Analysis Total . | . . . Derelict Logs Recovered . | . . . Drone Launches . | . . . Drone Recoveries . | . . . Exploration | -11 -10 -10 ------------- Run | Yrd Mat Min Turns Passed 559 | 59 301 199 Spaces Moved 350 | 42 174 134 Core 18 | 8 . 10 Treads . | . . . Legs 332 | 34 174 124 Wheels . | . . . Hover . | . . . Flight . | . . . Fastest Speed 50 | 50 120 50 Average Speed 116 | 111 120 114 Slowest Speed 120 | 120 120 120 Overloaded Moves . | . . . Propulsion Burnouts . | . . . Robots Hopped . | . . . Cave-ins Triggered . | . . . Exploration Rate (%) 34 | 3 37 62 Regions Visited 2 Branch Regions 1 Pre-discovered Areas . | . . . Known Exits Taken . | . . . Unknown Exits Taken 2 | 1 1 . Scrap Searched 1 | . . 1 Spaces Dug . | . . . Terrain Destroyed 28 | . 13 15 Melee . | . . . Projectile . | . . . AOE 28 | . 13 15 Terrain Rammed . | . . . Walls Destroyed . | . . . Machines Disabled . | . . . Actions | -11 -10 -10 --------- Run | Yrd Mat Min Total 449 | 51 233 165 Wait 35 | 3 13 19 Move 348 | 41 173 134 Hop . | . . . Pick Up 14 | 1 13 . Fast Attach 7 | 6 1 . Attach 1 | . . 1 Detach . | . . . Swap 10 | . 8 2 Drop 8 | . 7 1 Fire 26 | . 18 8 Melee . | . . . Ram . | . . . Kick . | . . . Crush . | . . . Escape Stasis . | . . . Rewire . | . . . Trap . | . . . Miscellaneous . | . . . Route ------- -11/Scrapyard -10/Materials (discovered 2 exits: [*Min x2]) -10/Mines History --------- Turn | Location | Event 6 | -11/Scrapyard | Discovered new exit (range 16) 60 | -11/Scrapyard | Entered Materials 125 | -10/Materials | Discovered new exit (range 8) 289 | -10/Materials | Discovered new exit (range 15) 317 | -10/Materials | Build established: Mutant 361 | -10/Materials | Entered Mines 524 | -10/Mines | Assembled infested the area 555 | -10/Mines | Released all parts (2) 556 | -10/Mines | Core integrity fell below 50% 558 | -10/Mines | Core integrity fell below 20% 560 | -10/Mines | Destroyed by D-53 Grenadier with Mini Grenade Launcher Last Messages --------------- 00543_ U-05 Engineer destroyed. 00544_ as-56702 destroyed. 00547_ EM Shotgun destroyed. 00548_ Aluminum Leg destroyed. 00550_ Hrd. Light Armor Plating destroyed. 00551_ R-06 Scavenger destroyed. 00551_ as-40303 destroyed. 00551_ Destroyed Asb. Hover Unit. 00551_ as-96804 destroyed. 00551_ as-66605 destroyed. 00551_ as-12089 destroyed. 00553_ as-39630 destroyed. 00554_ Lgt. Ion Engine destroyed. 00555_ Grenade Launcher destroyed. 00555_ Released Sml. Storage Unit. 00555_ Released Assault Rifle. 00559_ U-05 Engineer lays Concrete. 00560_ as-47419 destroyed. 00560_ as-45176 destroyed. 00560_ as-36969 destroyed. Map ----- +----------------------------------------------------+ | #???????????????? ? ##?# ##?????? | | #??????????????? ??##???#####??????? | | ## ##????????????? ??????????????????? | | #### ##????????????? ??????????????????? | | ??## ##????????????? ??????????????????? | | ??# #???????????????####???????????????????? | | ??# #??????????????????????????????????????? | | #?# #??????????????????????????????????????? | | ### #??????????????????????????????????????? | | ##??????????????????????????????????????? | | ##???????????????????????????????????????? | | ## #????????????????????????????????????????? | | ?# #????????????????????????????????????????? | | ?## ##?????###????????????????????????????????? | | ??#### #?????## ##?#####?????????????????????????? | | ?????# #???### ### ###??????????????????????? | | ?????# #?### #??????????????????????? | | ?????# #?# #??????????????????????? | | ?????# #?# % % % #??????????????????????? | | ?????# #?# % %!! #??????????????????????? | | ?????# ### %*[ #??????????????????????? | | ?????#%=%* # ###????????????????????? | | ?????# ##! ######## # ##???????????????????? | | ?????# ##*%= #??????# d ##??????????????????? | | ?????# ###= ##??????# d% ##?????????????????? | | ????? #?# #???????# @* #?????????????????? | | ?????# #?# #??????# u#?????????????????? | | ?????# #?# #?????# ### #????????????????? | | ?????# #?# % #?????# ???## #???????????????? | | ?????? ?? #????# ????? ?????????????? | | ?????? ? ##????# ?????? % ???????????? | | ??????#?## #?????# ??????# ??????????? | | ????????? #????? ???????# #??????????? | | ????????? ????? ???????? #### ???????????? | | ?????????# ????# ?????????#???????????????? | | ??????????# ??? ??????????????????????????? | | ??????????? ????? ??????????????????????????? | | ?????????????????? ??????????????????????????? | | ???????????????????? ??????????????????????????? | | ?????????????????????????????????????????????????? | | ?????????????????????????????????????????????????? | | ?????????????????????????????????????????????????? | | ?????????????????????????????????????????????????? | | ?????????????????????????????????????????????????? | | ?????????????????????????????????????????????????? | | | | | | | | | | | +----------------------------------------------------+ Best States ------------- Heat Dissipation 25 Energy Generation 10 Energy Capacity 125 Matter Stores 300 Matter Capacity 300 Sight Range 16 Terrain Scan Density 10 Armor Coverage 150 Evasion (%) 55 Item Schematics ----------------- None Robot Schematics ------------------ None Fabricated ------------ Nothing Alien Tech Used ----------------- None Achievements -------------- None Challenges ------------ None Game ------ Seed ThrusterAntimissileMachine Manual? 0 Play Time 00:18:20 Cumulative 10.1 hours Start 2024.03.11 @ 16:46:02 End 2024.03.11 @ 17:03:24 Sessions 1 Manual Loads 0 Difficulty Rogue Special Mode None Game No. 15 Rogue 15 Adventurer 0 Explorer 0 Win Type - Total 0 Types 0/0/0/0/0/0/0/0/0 Lore% 3 Gallery% 8 Achievement% 10 Wizard Run 0 Options --------- Layout 1 ASCII 0 Keyboard 0 Movement Mouse Keybinds 0 Fullscreen 2 Font 24/Smallcaps Map View 50x35 Zoom Use 0% Tactical HUD 1 Map Filters NONE Filters NONE Steam 1 RUN: f244a33f-f88b-4c1c-9e47-d856fb38dc9f